[Event "Titled Tuesday Blitz June 20 Early 2023"]
[White "Alberto, Manuel"]
[Black "Simonovic, Miroslav"]
[WhiteFideId "10100148"]
[BlackFideId "919152"]
[WhiteElo "2166"]
[BlackElo "2075"]
[Result "0-1"]
[Round "6"]
[TimeControl "180+2"]
[Date "2023.06.20"]
[WhiteClock "0:00:52"]
[BlackClock "0:00:30"]
[Board "188"]

1. e4 {[%clk 0:03:00]}  c5 {[%clk 0:03:00]} 2. Nf3 {[%clk 0:02:58]}  Nc6 {[%clk 0:03:00]} 3. Bb5 {[%clk 0:02:54]}  g6 {[%clk 0:02:59]} 4. O-O {[%clk 0:02:53]}  Bg7 {[%clk 0:02:59]} 5. Bxc6 {[%clk 0:02:52]}  dxc6 {[%clk 0:03:00]} 6. Re1 {[%clk 0:02:50]}  e5 {[%clk 0:03:00]} 7. h3 {[%clk 0:02:50]}  Ne7 {[%clk 0:03:00]} 8. d3 {[%clk 0:02:50]}  O-O {[%clk 0:03:00]} 9. a4 {[%clk 0:02:51]}  h6 {[%clk 0:02:54]} 10. a5 {[%clk 0:02:50]}  Be6 {[%clk 0:02:55]} 11. b3 {[%clk 0:02:49]}  b6 {[%clk 0:02:37]} 12. Be3 {[%clk 0:02:48]}  Qd7 {[%clk 0:02:32]} 13. Qd2 {[%clk 0:02:48]}  Kh7 {[%clk 0:02:32]} 14. Nc3 {[%clk 0:02:44]}  f5 {[%clk 0:02:31]} 15. Qe2 {[%clk 0:02:34]}  f4 {[%clk 0:02:30]} 16. Bd2 {[%clk 0:02:33]}  g5 {[%clk 0:02:30]} 17. Nh2 {[%clk 0:02:32]}  Kg6 {[%clk 0:02:22]} 18. Na4 {[%clk 0:02:29]}  Rab8 {[%clk 0:02:16]} 19. axb6 {[%clk 0:02:27]}  axb6 {[%clk 0:02:17]} 20. b4 {[%clk 0:02:21]}  cxb4 {[%clk 0:02:08]} 21. Bxb4 {[%clk 0:02:20]}  c5 {[%clk 0:02:08]} 22. Bc3 {[%clk 0:02:20]}  h5 {[%clk 0:02:02]} 23. Nf3 {[%clk 0:02:12]}  Nc6 {[%clk 0:01:56]} 24. Reb1 {[%clk 0:02:09]}  Qc7 {[%clk 0:01:47]} 25. Nd2 {[%clk 0:02:02]}  Nd4 {[%clk 0:01:42]} 26. Bxd4 {[%clk 0:02:01]}  cxd4 {[%clk 0:01:28]} 27. f3 {[%clk 0:01:37]}  Rfc8 {[%clk 0:01:21]} 28. Rc1 {[%clk 0:01:23]}  b5 {[%clk 0:01:20]} 29. Nb2 {[%clk 0:01:23]}  Ra8 {[%clk 0:01:08]} 30. Rab1 {[%clk 0:01:08]}  Ra2 {[%clk 0:00:56]} 31. Nd1 {[%clk 0:01:06]}  Bd7 {[%clk 0:00:43]} 32. c3 {[%clk 0:01:01]}  dxc3 {[%clk 0:00:32]} 33. Rc2 {[%clk 0:00:52]}  Rxc2 {[%clk 0:00:30]} 0-1


[Site "https://www.chess.com"]

[Event "Titled Tuesday Blitz June 20 Early 2023"]
[White "Goughfather"]
[Black "Rodriguez Santiago, Jaime"]
[BlackFideId "3100898"]
[WhiteElo "2013"]
[BlackElo "2025"]
[Result "1-0"]
[Round "6"]
[TimeControl "180+2"]
[Date "2023.06.20"]
[WhiteClock "0:00:19"]
[BlackClock "0:00:13"]
[Board "191"]

1. d4 {[%clk 0:03:00]}  Nf6 {[%clk 0:02:59]} 2. Nc3 {[%clk 0:03:00]}  d5 {[%clk 0:02:57]} 3. Bf4 {[%clk 0:03:00]}  a6 {[%clk 0:02:57]} 4. e3 {[%clk 0:02:58]}  c5 {[%clk 0:02:56]} 5. dxc5 {[%clk 0:02:32]}  Nc6 {[%clk 0:02:51]} 6. Nf3 {[%clk 0:02:14]}  e6 {[%clk 0:02:46]} 7. Na4 {[%clk 0:02:08]}  Bxc5 {[%clk 0:02:22]} 8. Nxc5 {[%clk 0:02:07]}  Qa5+ {[%clk 0:02:22]} 9. c3 {[%clk 0:02:07]}  Qxc5 {[%clk 0:02:22]} 10. Be2 {[%clk 0:02:00]}  O-O {[%clk 0:02:19]} 11. O-O {[%clk 0:01:55]}  Rd8 {[%clk 0:02:17]} 12. Ne5 {[%clk 0:01:53]}  Nxe5 {[%clk 0:02:14]} 13. Bxe5 {[%clk 0:01:52]}  Qe7 {[%clk 0:02:14]} 14. Bd3 {[%clk 0:01:42]}  Nd7 {[%clk 0:02:11]} 15. Bc7 {[%clk 0:01:40]}  Rf8 {[%clk 0:02:09]} 16. Qh5 {[%clk 0:01:37]}  g6 {[%clk 0:02:07]} 17. Qh6 {[%clk 0:01:35]}  f5 {[%clk 0:02:04]} 18. Bf4 {[%clk 0:01:31]}  e5 {[%clk 0:02:03]} 19. Bg5 {[%clk 0:01:29]}  Qf7 {[%clk 0:01:59]} 20. Rfd1 {[%clk 0:01:22]}  b5 {[%clk 0:01:55]} 21. Bc2 {[%clk 0:01:22]}  Bb7 {[%clk 0:01:55]} 22. Bb3 {[%clk 0:01:22]}  Nb6 {[%clk 0:01:51]} 23. Rd2 {[%clk 0:01:21]}  Nc4 {[%clk 0:01:43]} 24. Bxc4 {[%clk 0:01:21]}  bxc4 {[%clk 0:01:37]} 25. Rad1 {[%clk 0:01:20]}  Bc6 {[%clk 0:01:35]} 26. b3 {[%clk 0:01:16]}  cxb3 {[%clk 0:01:32]} 27. axb3 {[%clk 0:01:16]}  Rab8 {[%clk 0:01:33]} 28. b4 {[%clk 0:01:16]}  Rb7 {[%clk 0:01:32]} 29. f3 {[%clk 0:01:11]}  Qc7 {[%clk 0:01:24]} 30. h4 {[%clk 0:00:44]}  Ba4 {[%clk 0:01:17]} 31. Rc1 {[%clk 0:00:34]}  Bb3 {[%clk 0:01:07]} 32. h5 {[%clk 0:00:33]}  Qg7 {[%clk 0:00:59]} 33. hxg6 {[%clk 0:00:24]}  hxg6 {[%clk 0:00:55]} 34. Qh4 {[%clk 0:00:24]}  Rc8 {[%clk 0:00:52]} 35. Bf6 {[%clk 0:00:22]}  Qh7 {[%clk 0:00:52]} 36. Qg5 {[%clk 0:00:21]}  Rxb4 {[%clk 0:00:47]} 37. Bxe5 {[%clk 0:00:21]}  Rh4 {[%clk 0:00:26]} 38. Kf2 {[%clk 0:00:20]}  Rh1 {[%clk 0:00:12]} 39. Rxh1 {[%clk 0:00:19]}  Qxh1 {[%clk 0:00:13]} 40. Qxg6+ {[%clk 0:00:19]}  Kf8 {[%clk 0:00:13]} 41. Bd6# {[%clk 0:00:19]} 1-0


[Site "https://www.chess.com"]

[Event "Titled Tuesday Blitz June 20 Early 2023"]
[White "Skiadopoulos, Nikolaos"]
[Black "agvania123"]
[WhiteFideId "4200772"]
[WhiteElo "2022"]
[BlackElo "2250"]
[Result "0-1"]
[Round "6"]
[TimeControl "180+2"]
[Date "2023.06.20"]
[WhiteClock "0:00:31"]
[BlackClock "0:00:44"]
[Board "192"]

1. e4 {[%clk 0:03:00]}  d5 {[%clk 0:02:58]} 2. exd5 {[%clk 0:03:00]}  Qxd5 {[%clk 0:02:59]} 3. Nc3 {[%clk 0:02:57]}  Qd8 {[%clk 0:02:58]} 4. d4 {[%clk 0:02:56]}  Nf6 {[%clk 0:02:58]} 5. Bc4 {[%clk 0:02:54]}  a6 {[%clk 0:02:58]} 6. a4 {[%clk 0:02:54]}  Nc6 {[%clk 0:02:58]} 7. Be3 {[%clk 0:02:51]}  Bf5 {[%clk 0:02:57]} 8. Nf3 {[%clk 0:02:50]}  e6 {[%clk 0:02:56]} 9. O-O {[%clk 0:02:48]}  Nb4 {[%clk 0:02:55]} 10. Rc1 {[%clk 0:02:39]}  Be7 {[%clk 0:02:54]} 11. Nh4 {[%clk 0:02:36]}  Bg6 {[%clk 0:02:51]} 12. Qd2 {[%clk 0:02:21]}  O-O {[%clk 0:02:48]} 13. Nxg6 {[%clk 0:02:20]}  hxg6 {[%clk 0:02:47]} 14. Rcd1 {[%clk 0:02:14]}  Nbd5 {[%clk 0:02:47]} 15. Nxd5 {[%clk 0:02:05]}  Nxd5 {[%clk 0:02:47]} 16. Bxd5 {[%clk 0:02:04]}  exd5 {[%clk 0:02:47]} 17. Rfe1 {[%clk 0:02:02]}  c6 {[%clk 0:02:46]} 18. Bf4 {[%clk 0:01:57]}  Bf6 {[%clk 0:02:44]} 19. Be5 {[%clk 0:01:54]}  Re8 {[%clk 0:02:43]} 20. Re3 {[%clk 0:01:49]}  Bxe5 {[%clk 0:02:37]} 21. dxe5 {[%clk 0:01:48]}  Qc7 {[%clk 0:02:35]} 22. f4 {[%clk 0:01:47]}  g5 {[%clk 0:02:12]} 23. g3 {[%clk 0:01:32]}  gxf4 {[%clk 0:02:12]} 24. gxf4 {[%clk 0:01:32]}  Re6 {[%clk 0:02:07]} 25. Rde1 {[%clk 0:01:26]}  Rg6+ {[%clk 0:02:04]} 26. Rg3 {[%clk 0:01:25]}  Rxg3+ {[%clk 0:02:03]} 27. hxg3 {[%clk 0:01:25]}  Re8 {[%clk 0:02:04]} 28. a5 {[%clk 0:01:23]}  Qd7 {[%clk 0:02:02]} 29. Kg2 {[%clk 0:01:21]}  Qf5 {[%clk 0:01:59]} 30. b4 {[%clk 0:01:17]}  g6 {[%clk 0:01:25]} 31. Rh1 {[%clk 0:01:12]}  Kg7 {[%clk 0:01:24]} 32. Qd3 {[%clk 0:01:10]}  Qxd3 {[%clk 0:01:20]} 33. cxd3 {[%clk 0:01:09]}  g5 {[%clk 0:01:19]} 34. d4 {[%clk 0:01:08]}  gxf4 {[%clk 0:01:19]} 35. gxf4 {[%clk 0:01:08]}  Kg6 {[%clk 0:01:18]} 36. Kf3 {[%clk 0:01:07]}  f6 {[%clk 0:01:15]} 37. Kg4 {[%clk 0:01:03]}  fxe5 {[%clk 0:01:13]} 38. dxe5 {[%clk 0:01:02]}  Rf8 {[%clk 0:01:12]} 39. e6 {[%clk 0:00:45]}  Rf6 {[%clk 0:00:51]} 40. f5+ {[%clk 0:00:44]}  Rxf5 {[%clk 0:00:45]} 41. Rh6+ {[%clk 0:00:43]}  Kxh6 {[%clk 0:00:44]} 42. Kxf5 {[%clk 0:00:43]}  Kg7 {[%clk 0:00:45]} 43. Ke5 {[%clk 0:00:43]}  Kf8 {[%clk 0:00:44]} 44. Kd6 {[%clk 0:00:43]}  Ke8 {[%clk 0:00:45]} 45. e7 {[%clk 0:00:31]}  d4 {[%clk 0:00:44]} 0-1


[Site "https://www.chess.com"]

[Event "Titled Tuesday Blitz June 20 Early 2023"]
[White "Clawitter, Craig"]
[Black "luachess1"]
[WhiteFideId "2023105"]
[WhiteElo "2235"]
[BlackElo "1617"]
[Result "1-0"]
[Round "6"]
[TimeControl "180+2"]
[Date "2023.06.20"]
[WhiteClock "0:00:17"]
[BlackClock "0:00:04"]
[Board "193"]

1. e4 {[%clk 0:02:31]}  c5 {[%clk 0:02:57]} 2. Nf3 {[%clk 0:02:31]}  Nc6 {[%clk 0:02:56]} 3. d4 {[%clk 0:02:30]}  cxd4 {[%clk 0:02:57]} 4. Nxd4 {[%clk 0:02:30]}  Nf6 {[%clk 0:02:56]} 5. Nc3 {[%clk 0:02:29]}  d6 {[%clk 0:02:56]} 6. Bc4 {[%clk 0:02:28]}  g6 {[%clk 0:02:52]} 7. Nxc6 {[%clk 0:02:24]}  bxc6 {[%clk 0:02:51]} 8. e5 {[%clk 0:02:25]}  d5 {[%clk 0:02:06]} 9. exf6 {[%clk 0:02:07]}  dxc4 {[%clk 0:02:04]} 10. Qe2 {[%clk 0:01:41]}  e6 {[%clk 0:02:00]} 11. Qxc4 {[%clk 0:01:31]}  Bd7 {[%clk 0:01:58]} 12. Ne4 {[%clk 0:01:17]}  Qa5+ {[%clk 0:01:50]} 13. Bd2 {[%clk 0:01:10]}  Qd5 {[%clk 0:01:50]} 14. Qe2 {[%clk 0:00:59]}  Qb5 {[%clk 0:01:30]} 15. Bc3 {[%clk 0:00:40]}  Rd8 {[%clk 0:01:10]} 16. Rd1 {[%clk 0:00:28]}  Bb4 {[%clk 0:00:46]} 17. Qxb5 {[%clk 0:00:20]}  Bxc3+ {[%clk 0:00:46]} 18. bxc3 {[%clk 0:00:19]}  cxb5 {[%clk 0:00:45]} 19. Nd6+ {[%clk 0:00:19]}  Kf8 {[%clk 0:00:45]} 20. Nb7 {[%clk 0:00:19]}  Ke8 {[%clk 0:00:34]} 21. Nxd8 {[%clk 0:00:19]}  Kxd8 {[%clk 0:00:34]} 22. Ke2 {[%clk 0:00:19]}  Kc7 {[%clk 0:00:33]} 23. Rd2 {[%clk 0:00:18]}  Bc6 {[%clk 0:00:32]} 24. f3 {[%clk 0:00:18]}  Bd5 {[%clk 0:00:31]} 25. Rhd1 {[%clk 0:00:17]}  Rd8 {[%clk 0:00:25]} 26. a3 {[%clk 0:00:17]}  a5 {[%clk 0:00:20]} 27. Ke3 {[%clk 0:00:17]}  Rb8 {[%clk 0:00:18]} 28. Rxd5 {[%clk 0:00:16]}  exd5 {[%clk 0:00:18]} 29. Rxd5 {[%clk 0:00:17]}  Kc6 {[%clk 0:00:17]} 30. Re5 {[%clk 0:00:16]}  Kd6 {[%clk 0:00:13]} 31. Re7 {[%clk 0:00:16]}  Rf8 {[%clk 0:00:13]} 32. Kd4 {[%clk 0:00:17]}  Kc6 {[%clk 0:00:12]} 33. f4 {[%clk 0:00:17]}  Kb6 {[%clk 0:00:11]} 34. c4 {[%clk 0:00:16]}  b4 {[%clk 0:00:11]} 35. axb4 {[%clk 0:00:16]}  axb4 {[%clk 0:00:12]} 36. c5+ {[%clk 0:00:16]}  Kb5 {[%clk 0:00:12]} 37. Rb7+ {[%clk 0:00:16]}  Ka4 {[%clk 0:00:12]} 38. Ra7+ {[%clk 0:00:16]}  Kb5 {[%clk 0:00:12]} 39. Rb7+ {[%clk 0:00:17]}  Ka4 {[%clk 0:00:12]} 40. Kc4 {[%clk 0:00:17]}  Re8 {[%clk 0:00:04]} 41. Ra7# {[%clk 0:00:17]} 1-0


[Site "https://www.chess.com"]

[Event "Titled Tuesday Blitz June 20 Early 2023"]
[White "Cardenas Carbajal, Nilson"]
[Black "Dzhaparov, Medet"]
[WhiteFideId "8401128"]
[BlackFideId "13803689"]
[WhiteElo "1972"]
[BlackElo "1690"]
[Result "1-0"]
[Round "6"]
[TimeControl "180+2"]
[Date "2023.06.20"]
[WhiteClock "0:00:23"]
[BlackClock "0:00:09"]
[Board "195"]

1. e4 {[%clk 0:03:00]}  c5 {[%clk 0:02:55]} 2. d4 {[%clk 0:03:01]}  cxd4 {[%clk 0:02:54]} 3. c3 {[%clk 0:03:02]}  dxc3 {[%clk 0:02:54]} 4. Nxc3 {[%clk 0:03:02]}  Nc6 {[%clk 0:02:52]} 5. Nf3 {[%clk 0:03:02]}  d6 {[%clk 0:02:51]} 6. Bc4 {[%clk 0:03:02]}  Nf6 {[%clk 0:02:50]} 7. e5 {[%clk 0:03:02]}  dxe5 {[%clk 0:02:49]} 8. Qxd8+ {[%clk 0:02:58]}  Kxd8 {[%clk 0:02:50]} 9. Ng5 {[%clk 0:02:37]}  Na5 {[%clk 0:02:50]} 10. Bxf7 {[%clk 0:02:05]}  e6 {[%clk 0:02:44]} 11. Bxe6 {[%clk 0:01:59]}  Bxe6 {[%clk 0:02:41]} 12. Nxe6+ {[%clk 0:01:59]}  Kd7 {[%clk 0:02:40]} 13. Ng5 {[%clk 0:01:44]}  Bb4 {[%clk 0:02:29]} 14. Bd2 {[%clk 0:01:40]}  Bxc3 {[%clk 0:02:16]} 15. Bxc3 {[%clk 0:01:39]}  Nc6 {[%clk 0:02:16]} 16. O-O-O+ {[%clk 0:01:36]}  Kc7 {[%clk 0:02:08]} 17. Rhe1 {[%clk 0:01:26]}  Rhe8 {[%clk 0:02:04]} 18. Nf7 {[%clk 0:01:11]}  Nd7 {[%clk 0:01:53]} 19. f3 {[%clk 0:01:03]}  Kb6 {[%clk 0:01:44]} 20. Rxd7 {[%clk 0:00:56]}  g6 {[%clk 0:01:32]} 21. Nd6 {[%clk 0:00:55]}  Re6 {[%clk 0:01:30]} 22. Nc4+ {[%clk 0:00:42]}  Kb5 {[%clk 0:01:24]} 23. Nxe5 {[%clk 0:00:41]}  Nxe5 {[%clk 0:01:23]} 24. Rxe5+ {[%clk 0:00:41]}  Rxe5 {[%clk 0:01:18]} 25. Bxe5 {[%clk 0:00:41]}  Rc8+ {[%clk 0:01:10]} 26. Kd2 {[%clk 0:00:40]}  b6 {[%clk 0:01:04]} 27. Rxh7 {[%clk 0:00:36]}  Rd8+ {[%clk 0:01:00]} 28. Ke2 {[%clk 0:00:35]}  Re8 {[%clk 0:01:00]} 29. f4 {[%clk 0:00:36]}  g5 {[%clk 0:00:57]} 30. g3 {[%clk 0:00:35]}  gxf4 {[%clk 0:00:55]} 31. gxf4 {[%clk 0:00:35]}  Re6 {[%clk 0:00:53]} 32. h4 {[%clk 0:00:34]}  Rc6 {[%clk 0:00:51]} 33. Kd2 {[%clk 0:00:33]}  Rc5 {[%clk 0:00:49]} 34. Rxa7 {[%clk 0:00:32]}  Rd5+ {[%clk 0:00:46]} 35. Ke2 {[%clk 0:00:32]}  Rc5 {[%clk 0:00:38]} 36. h5 {[%clk 0:00:31]}  Rc2+ {[%clk 0:00:37]} 37. Ke3 {[%clk 0:00:31]}  Rh2 {[%clk 0:00:37]} 38. Rh7 {[%clk 0:00:28]}  Rh3+ {[%clk 0:00:33]} 39. Ke4 {[%clk 0:00:28]}  Rh2 {[%clk 0:00:19]} 40. h6 {[%clk 0:00:27]}  Re2+ {[%clk 0:00:17]} 41. Kf5 {[%clk 0:00:27]}  Rh2 {[%clk 0:00:16]} 42. Rh8 {[%clk 0:00:27]}  Rh5+ {[%clk 0:00:15]} 43. Kg6 {[%clk 0:00:25]}  Rh2 {[%clk 0:00:13]} 44. h7 {[%clk 0:00:25]}  Rg2+ {[%clk 0:00:09]} 45. Kf7 {[%clk 0:00:23]} 1-0


[Site "https://www.chess.com"]

[Event "Titled Tuesday Blitz June 20 Early 2023"]
[White "Ouellet, Maili-Jade"]
[Black "zano2023"]
[WhiteFideId "2620472"]
[WhiteElo "2077"]
[BlackElo "2163"]
[Result "1-0"]
[Round "6"]
[TimeControl "180+2"]
[Date "2023.06.20"]
[WhiteClock "0:00:17"]
[BlackClock "0:00:09"]
[Board "198"]

1. e4 {[%clk 0:03:00]}  e5 {[%clk 0:02:55]} 2. Nf3 {[%clk 0:03:00]}  d6 {[%clk 0:02:54]} 3. d4 {[%clk 0:02:59]}  f5 {[%clk 0:02:52]} 4. Nc3 {[%clk 0:02:49]}  Nf6 {[%clk 0:02:51]} 5. dxe5 {[%clk 0:02:48]}  Nxe4 {[%clk 0:02:51]} 6. Nxe4 {[%clk 0:02:41]}  fxe4 {[%clk 0:02:52]} 7. Ng5 {[%clk 0:02:41]}  d5 {[%clk 0:02:52]} 8. e6 {[%clk 0:02:25]}  Bc5 {[%clk 0:02:43]} 9. Be2 {[%clk 0:01:49]}  O-O {[%clk 0:02:13]} 10. O-O {[%clk 0:01:44]}  c6 {[%clk 0:02:12]} 11. c4 {[%clk 0:01:42]}  e3 {[%clk 0:02:05]} 12. f4 {[%clk 0:01:32]}  d4 {[%clk 0:02:00]} 13. Qd3 {[%clk 0:01:29]}  g6 {[%clk 0:01:57]} 14. Bg4 {[%clk 0:01:21]}  Qf6 {[%clk 0:01:38]} 15. a3 {[%clk 0:01:02]}  a5 {[%clk 0:01:37]} 16. Ne4 {[%clk 0:01:01]}  Qe7 {[%clk 0:01:35]} 17. Nxc5 {[%clk 0:01:00]}  Qxc5 {[%clk 0:01:35]} 18. b4 {[%clk 0:01:00]}  Qd6 {[%clk 0:01:26]} 19. Bb2 {[%clk 0:00:56]}  axb4 {[%clk 0:01:11]} 20. axb4 {[%clk 0:00:56]}  Rxa1 {[%clk 0:01:11]} 21. Bxa1 {[%clk 0:00:56]}  b6 {[%clk 0:00:43]} 22. Qxd4 {[%clk 0:00:47]}  Qxd4 {[%clk 0:00:42]} 23. Bxd4 {[%clk 0:00:48]}  Re8 {[%clk 0:00:37]} 24. Re1 {[%clk 0:00:42]}  Bxe6 {[%clk 0:00:34]} 25. Rxe3 {[%clk 0:00:41]}  Bf7 {[%clk 0:00:33]} 26. Rxe8+ {[%clk 0:00:37]}  Bxe8 {[%clk 0:00:34]} 27. Bxb6 {[%clk 0:00:37]}  Nd7 {[%clk 0:00:32]} 28. Bd4 {[%clk 0:00:37]}  Kf7 {[%clk 0:00:32]} 29. Kf2 {[%clk 0:00:36]}  h5 {[%clk 0:00:29]} 30. Bf3 {[%clk 0:00:34]}  Nf6 {[%clk 0:00:27]} 31. Bxf6 {[%clk 0:00:34]}  Kxf6 {[%clk 0:00:27]} 32. Ke3 {[%clk 0:00:34]}  Ke6 {[%clk 0:00:24]} 33. Kd4 {[%clk 0:00:34]}  Kd6 {[%clk 0:00:24]} 34. g3 {[%clk 0:00:30]}  Bd7 {[%clk 0:00:24]} 35. Be4 {[%clk 0:00:30]}  Be8 {[%clk 0:00:24]} 36. h3 {[%clk 0:00:26]}  Bf7 {[%clk 0:00:23]} 37. g4 {[%clk 0:00:25]}  hxg4 {[%clk 0:00:20]} 38. hxg4 {[%clk 0:00:26]}  Be8 {[%clk 0:00:20]} 39. f5 {[%clk 0:00:26]}  gxf5 {[%clk 0:00:19]} 40. Bxf5 {[%clk 0:00:27]}  Bf7 {[%clk 0:00:20]} 41. g5 {[%clk 0:00:27]}  Bg8 {[%clk 0:00:20]} 42. g6 {[%clk 0:00:25]}  Kc7 {[%clk 0:00:16]} 43. Kc5 {[%clk 0:00:19]}  Kb7 {[%clk 0:00:12]} 44. Be4 {[%clk 0:00:18]}  Kc7 {[%clk 0:00:12]} 45. Bxc6 {[%clk 0:00:18]}  Be6 {[%clk 0:00:09]} 46. Bd5 {[%clk 0:00:17]} 1-0


[Site "https://www.chess.com"]

[Event "Titled Tuesday Blitz June 20 Early 2023"]
[White "Floresvillar Gonzalez, Luis Migu"]
[Black "Modric, Nesa"]
[WhiteFideId "5100542"]
[BlackFideId "922579"]
[WhiteElo "2040"]
[BlackElo "2167"]
[Result "1/2-1/2"]
[Round "6"]
[TimeControl "180+2"]
[Date "2023.06.20"]
[WhiteClock "0:00:03"]
[BlackClock "0:00:08"]
[Board "199"]

1. e4 {[%clk 0:02:42]}  d5 {[%clk 0:02:59]} 2. exd5 {[%clk 0:02:42]}  Qxd5 {[%clk 0:03:00]} 3. c4 {[%clk 0:02:42]}  Qa5 {[%clk 0:03:00]} 4. Nc3 {[%clk 0:02:41]}  c6 {[%clk 0:03:00]} 5. d4 {[%clk 0:02:42]}  Nf6 {[%clk 0:02:59]} 6. Bd3 {[%clk 0:02:37]}  Bg4 {[%clk 0:02:55]} 7. Ne2 {[%clk 0:02:35]}  e6 {[%clk 0:02:55]} 8. c5 {[%clk 0:02:34]}  Nbd7 {[%clk 0:02:49]} 9. h3 {[%clk 0:02:34]}  Bh5 {[%clk 0:02:48]} 10. O-O {[%clk 0:02:30]}  Be7 {[%clk 0:02:48]} 11. Be3 {[%clk 0:02:29]}  O-O {[%clk 0:02:43]} 12. Qb3 {[%clk 0:02:27]}  Qc7 {[%clk 0:02:36]} 13. Rad1 {[%clk 0:02:21]}  Nd5 {[%clk 0:02:34]} 14. Qc2 {[%clk 0:02:17]}  N7f6 {[%clk 0:02:23]} 15. Bg5 {[%clk 0:02:14]}  Nb4 {[%clk 0:02:18]} 16. Qb1 {[%clk 0:02:06]}  Nxd3 {[%clk 0:02:16]} 17. Rxd3 {[%clk 0:02:05]}  Bg6 {[%clk 0:02:13]} 18. Rfd1 {[%clk 0:02:02]}  Bxd3 {[%clk 0:02:11]} 19. Rxd3 {[%clk 0:02:02]}  Nd5 {[%clk 0:02:09]} 20. Nxd5 {[%clk 0:01:57]}  exd5 {[%clk 0:02:03]} 21. Bf4 {[%clk 0:01:57]}  Qd7 {[%clk 0:01:59]} 22. Rg3 {[%clk 0:01:56]}  Bf6 {[%clk 0:01:55]} 23. Bd6 {[%clk 0:01:46]}  Rfe8 {[%clk 0:01:54]} 24. Qd3 {[%clk 0:01:44]}  Re4 {[%clk 0:01:49]} 25. Be5 {[%clk 0:01:29]}  Bxe5 {[%clk 0:01:44]} 26. dxe5 {[%clk 0:01:29]}  Re8 {[%clk 0:01:39]} 27. f4 {[%clk 0:01:26]}  b6 {[%clk 0:01:28]} 28. cxb6 {[%clk 0:01:22]}  axb6 {[%clk 0:01:27]} 29. Rf3 {[%clk 0:01:22]}  c5 {[%clk 0:01:22]} 30. Ng3 {[%clk 0:01:18]}  Rd4 {[%clk 0:01:15]} 31. Qc2 {[%clk 0:01:17]}  Ra8 {[%clk 0:01:03]} 32. a3 {[%clk 0:01:15]}  Rc4 {[%clk 0:01:03]} 33. Qb1 {[%clk 0:01:08]}  b5 {[%clk 0:00:58]} 34. Nf5 {[%clk 0:01:06]}  b4 {[%clk 0:00:49]} 35. axb4 {[%clk 0:01:05]}  cxb4 {[%clk 0:00:48]} 36. Nd6 {[%clk 0:01:03]}  Rc6 {[%clk 0:00:47]} 37. Nf5 {[%clk 0:01:00]}  Rac8 {[%clk 0:00:43]} 38. Kh2 {[%clk 0:01:00]}  Rc1 {[%clk 0:00:41]} 39. Qd3 {[%clk 0:00:59]}  R1c2 {[%clk 0:00:38]} 40. Rg3 {[%clk 0:00:57]}  g6 {[%clk 0:00:34]} 41. Nh6+ {[%clk 0:00:54]}  Kg7 {[%clk 0:00:34]} 42. Ng4 {[%clk 0:00:51]}  Rxb2 {[%clk 0:00:25]} 43. Nf6 {[%clk 0:00:51]}  Qe6 {[%clk 0:00:23]} 44. Qd4 {[%clk 0:00:35]}  Rc3 {[%clk 0:00:21]} 45. Nh5+ {[%clk 0:00:18]}  Kh6 {[%clk 0:00:19]} 46. Nf6 {[%clk 0:00:17]}  Rxg3 {[%clk 0:00:18]} 47. Kxg3 {[%clk 0:00:16]}  Rb3+ {[%clk 0:00:18]} 48. Kh2 {[%clk 0:00:16]}  Qf5 {[%clk 0:00:17]} 49. Ng4+ {[%clk 0:00:14]}  Kg7 {[%clk 0:00:16]} 50. Ne3 {[%clk 0:00:13]}  Qd3 {[%clk 0:00:14]} 51. Nf5+ {[%clk 0:00:05]}  gxf5 {[%clk 0:00:13]} 52. Qb6 {[%clk 0:00:05]}  Qe4 {[%clk 0:00:11]} 53. Qf6+ {[%clk 0:00:04]}  Kg8 {[%clk 0:00:10]} 54. Qd8+ {[%clk 0:00:02]}  Kg7 {[%clk 0:00:10]} 55. Qg5+ {[%clk 0:00:02]}  Kf8 {[%clk 0:00:09]} 56. Qd8+ {[%clk 0:00:02]}  Kg7 {[%clk 0:00:09]} 57. Qg5+ {[%clk 0:00:03]}  Kf8 {[%clk 0:00:08]} 58. Qd8+ {[%clk 0:00:03]}  Kg7 {[%clk 0:00:08]} 1/2-1/2


[Site "https://www.chess.com"]